fUST/lending_fUST_20260427
["ID","MTS","AMOUNT","RATE_DAILY","PERIOD"]
[421230126,1777276247417,-500.0,0.000122,2]
[421230127,1777276247426,-500.0,0.000122,2]
[421230128,1777276247436,-500.0,0.000122,2]
[421230129,1777276247445,-500.0,0.000122,2]
[421230130,1777276247454,-500.0,0.000122,2]
[421230131,1777276247464,-500.0,0.000122,2]
[421230132,1777276247473,-500.0,0.000122,2]
[421230133,1777276247482,-500.0,0.000122,2]
[421230134,1777276247492,-500.0,0.000122,2]
[421230135,1777276247501,-500.0,0.000122,2]
[421230136,1777276247510,-500.0,0.000122,2]
[421230137,1777276247520,-500.0,0.000122,2]
[421230138,1777276247529,-500.0,0.000122,2]
[421230139,1777276247539,-6753.59633589,0.00012201,2]
[421230140,1777276247563,-52.06014574,0.00012201,2]
[421230141,1777276247583,-6292.2066766,0.00012201,2]
[421230145,1777276251719,759.0,0.00020964,120]
[421230146,1777276253145,759.0,0.00022012,120]
[421230148,1777276254647,759.0,0.00023112,120]
[421230149,1777276256100,759.0,0.00024268,120]
[421230253,1777276480711,206.76,1e-08,2]
[421230304,1777276517735,1358.0,0.00021413,120]
[421230308,1777276518974,1358.0,0.00022483,120]
[421230310,1777276520315,1358.0,0.00023608,120]
[421230361,1777276551293,577.0,0.00020326,120]
[421230365,1777276552914,577.0,0.00021343,120]
[421230368,1777276554495,577.0,0.0002241,120]
[421230372,1777276556206,577.0,0.0002353,120]
[421230784,1777276789251,346.73,0.00024516,120]
[421230823,1777276810805,841.0,0.00021351,120]
[421230827,1777276812148,841.0,0.00022419,120]
[421230831,1777276813565,841.0,0.00023539,120]
[421230872,1777276833234,231.0,0.00022544,120]
[421230876,1777276834771,231.0,0.00023671,120]
[421230907,1777276848839,5830.62478607,7.6e-05,2]
[421231006,1777276891718,200.0,0.00021397,120]
[421231012,1777276951312,200.0,0.00021994,120]
[421231016,1777276977535,700.0,0.00025538,120]
[421231017,1777276977975,40364.15592697,0.00024,120]
[421231018,1777277010785,200.0,0.00023089,120]
[421231025,1777277112459,505.0,0.00021709,120]
[421231026,1777277113821,505.0,0.00022795,120]
[421231027,1777277115229,505.0,0.00023934,120]
[421231028,1777277135749,165.0,0.00022921,120]
[421231029,1777277137077,165.0,0.00024067,120]
[421231031,1777277223911,2718.44550616,7.3e-05,10]
[421231032,1777277251822,200.0,0.00019851,120]
[421231033,1777277299024,1346.04,0.00024658,120]
[421231034,1777277311222,200.0,0.00022064,120]
[421231035,1777277363495,1500.16021282,4.008e-05,2]
[421231036,1777277409528,303.0,0.00021724,120]
[421231037,1777277410785,303.0,0.0002281,120]
[421231038,1777277412126,303.0,0.00023951,120]
[421231039,1777277431930,166.0,0.00022936,120]
[421231072,1777277432430,-300.0,6.998e-05,2]
[421231074,1777277432449,-300.0,6.998e-05,2]
[421231076,1777277432459,-199.9146967,6.998e-05,2]
[421231103,1777277433273,166.0,0.00024083,120]
[421231150,1777277438548,-100.0853033,6.998e-05,2]
[421231151,1777277438558,-1200.0,6.998e-05,2]
[421231152,1777277438568,-500.0,6.999e-05,2]
[421231153,1777277438577,-500.0,6.999e-05,2]
[421231154,1777277438587,-500.0,6.999e-05,2]
[421231155,1777277438596,-500.0,6.999e-05,2]
[421231156,1777277438606,-500.0,6.999e-05,2]
[421231157,1777277438615,-500.0,6.999e-05,2]
[421231158,1777277438624,-500.0,6.999e-05,2]
[421231159,1777277438634,-500.0,6.999e-05,2]
[421231160,1777277438643,-500.0,6.999e-05,2]
[421231161,1777277438652,-434.0485231,6.999e-05,2]
[421231162,1777277438661,-500.0,6.999e-05,2]
[421231163,1777277438670,-500.0,6.999e-05,2]
[421231164,1777277438679,-500.0,6.999e-05,2]
[421231165,1777277438689,-500.0,6.999e-05,2]
[421231166,1777277438699,-500.0,6.999e-05,2]
[421231167,1777277438708,-500.0,6.999e-05,2]
[421231168,1777277438717,-378.75792032,6.999e-05,2]
[421231169,1777277438727,-150.0,7e-05,2]
[421231170,1777277438736,-78072.08873697,7e-05,2]
[421231171,1777277438747,-50602.10630344,7e-05,2]
[421231172,1777277438758,-2359.57002048,7e-05,2]
[421231173,1777277438769,-59879.82092245,7e-05,2]
[421231174,1777277438781,-3768.18521745,7e-05,2]
[421231182,1777277440867,-7457.91225139,7e-05,2]
[421231183,1777277440878,-341.44406342,7e-05,2]
[421231184,1777277440922,-2243.08747746,7e-05,2]
[421231185,1777277440934,-1623.24003643,7e-05,2]
[421231207,1777277443555,-1504.3502,7e-05,2]
[421231209,1777277443567,-18471.13165892,7e-05,2]
[421231211,1777277443578,-1480.43035877,7e-05,2]
[421231213,1777277443589,-454.96465952,7e-05,2]
[421231315,1777277451693,150.84083522,0.00025541,120]
[421231316,1777277451728,222.75403139,0.00025541,120]
[421231317,1777277452011,150.84083522,0.00025541,120]
[421231319,1777277517036,426.36,0.00023,120]
[421231320,1777277517350,426.36,0.0002375,120]
[421231321,1777277517531,426.36,0.000245,120]
[421231324,1777277571833,222.75403138,0.00025541,120]
[421231325,1777277709643,168.0,0.00022851,120]
[421231326,1777277711074,168.0,0.00023993,120]
[421231327,1777277790500,200.0,0.00023952,120]
[421231328,1777277946782,2065.29855526,0.00025517,120]
[421231329,1777277984652,-5000.0,7e-05,2]
[421231330,1777277992044,-1118.6680933,7e-05,2]
[421231331,1777277992070,-150.0,7.18e-05,2]
[421231332,1777278007863,168.0,0.00022909,120]
[421231333,1777278009262,168.0,0.00024054,120]
[421231334,1777278019548,940.25901843,0.00024251,120]
[421231335,1777278030456,200.0,0.00024486,120]
[421231336,1777278088886,-185.0,7.6e-05,2]
[421231337,1777278150700,200.0,0.00024544,120]
[421231338,1777278306111,172.0,0.0002292,120]
[421231339,1777278331065,200.0,0.00024224,120]
[421231340,1777278342782,-600.0,7.6e-05,2]
[421231341,1777278390694,200.0,0.00024567,120]
[421231342,1777278450462,200.0,0.0002364,120]
[421231343,1777278488129,740.8793965,0.00025517,120]
[421231348,1777278633669,-74.87975203,7.6e-05,2]
[421231349,1777278633679,-152.0,9.432e-05,2]
[421231350,1777278633688,-300.0,9.999e-05,2]
[421231351,1777278633697,-300.0,9.999e-05,2]
[421231352,1777278633706,-61.46230256,9.999e-05,2]
[421231360,1777278638961,-150.0,7.667e-05,2]
[421231361,1777278638971,-177.0,9.667e-05,2]
[421231362,1777278638981,-238.53769744,9.999e-05,2]
[421231363,1777278638991,-6317.64798537,0.0001,2]
[421231364,1777278639071,400.0,0.00025517,120]
[421231376,1777278641199,-452.28667416,0.0001,2]
[421231416,1777278662028,-260.97405191,9.835e-05,10]
[421231417,1777278662061,-152.0,9.934e-05,7]
[421231418,1777278662093,-115.24263701,9.934e-05,7]
[421231419,1777278662143,-36.75736299,9.934e-05,7]
[421231420,1777278691005,200.0,0.00020032,120]
[421231451,1777278691971,-528.21668892,9.9e-05,10]
[421231495,1777278700085,626096.36533022,0.0002465,120]
[421231499,1777278750488,200.0,0.00024575,120]
[421231567,1777278839043,773.39,0.0002465,120]
[421231569,1777278930702,200.0,0.00024092,120]
[421231571,1777278990464,200.0,0.00023364,120]
[421231572,1777279050470,200.0,0.0002322,120]
[421231573,1777279170491,200.0,0.00022908,120]
[421231574,1777279290810,200.0,0.00022338,120]
[421231575,1777279350497,200.0,0.00023776,120]
[421231576,1777279770680,200.0,0.00022908,120]
[421231590,1777279831666,-164.47919402,9.321e-05,10]
[421231591,1777279831677,-150.0,9.632e-05,2]
[421231592,1777279831686,-455.52935036,0.0001,2]
[421231594,1777279831718,-976.25152329,0.0001,2]
[421231608,1777279838132,-2846.66933561,0.0001,2]
[421231609,1777279838142,-319.0,0.0001,2]
[421231610,1777279838151,-174.02,0.00011343,2]
[421231611,1777279838161,-300.0,0.00011497,2]
[421231612,1777279838171,-300.0,0.00011497,2]
[421231613,1777279838181,-232.84785313,0.000115,2]
[421231614,1777279838191,-177.0,0.00011632,2]
[421231615,1777279838201,-300.0,0.00011726,2]
[421231616,1777279838210,-537.6845,0.00011881,2]
[421231617,1777279838220,-445.202766,0.00011881,2]
[421231618,1777279838230,-162.380719,0.00011881,2]
[421231619,1777279838239,-251.2970718,0.00011881,2]
[421231620,1777279838249,-537.6845,0.00011881,2]
[421231621,1777279838259,-2150.738,0.00011881,2]
[421231622,1777279838268,-156.98131636,0.00011881,2]
[421231623,1777279838278,-154.56,0.00011921,2]
[421231624,1777279838287,-557.5788265,0.00011936,2]
[421231625,1777279838297,-578.20924308,0.00011991,2]
[421231626,1777279838306,-160.519,0.00011998,2]
[421231627,1777279838316,-154.89,0.00012003,2]
[421231628,1777279838325,-599.60298507,0.00012046,2]
[421231629,1777279838334,-621.78829552,0.00012101,2]
[421231630,1777279838344,-202.45,0.00012169,2]
[421231631,1777279838354,-215.04,0.00012263,2]
[421231632,1777279838363,-155.0,0.000123,2]
[421231633,1777279838373,-2230.315306,0.00012429,2]
[421231634,1777279838383,-500.0,0.00012667,2]
[421231635,1777279838392,-521.80718759,0.00012667,2]
[421231636,1777279838401,-500.0,0.00012667,2]
[421231637,1777279838411,-500.0,0.00012667,2]
[421231638,1777279838420,-500.0,0.00012667,2]
[421231639,1777279838429,-500.0,0.00012667,2]
[421231640,1777279838439,-500.0,0.00012667,2]
[421231641,1777279838448,-500.0,0.00012667,2]
[421231642,1777279838458,-500.0,0.00012667,2]
[421231643,1777279838468,-406.15838636,0.00012667,2]
[421231644,1777279838477,-500.0,0.00012667,2]
[421231645,1777279838487,-500.0,0.00012667,2]
[421231646,1777279838497,-326.00539146,0.00012667,2]
[421231647,1777279838506,-500.0,0.00012667,2]
[421231648,1777279838516,-500.0,0.00012667,2]
[421231649,1777279838525,-500.0,0.00012667,2]
[421231650,1777279838535,-500.0,0.00012667,2]
[421231651,1777279838544,-500.0,0.00012667,2]
[421231652,1777279838553,-500.0,0.00012667,2]
[421231653,1777279838563,-30145.31691944,0.00012668,2]
[421231654,1777279838575,-57109.89594092,0.00012668,2]
[421231655,1777279838587,-2386.92409822,0.00012668,2]
[421231681,1777279843020,-9612.6594506,0.00012668,2]
[421231682,1777279843074,-302.62139999,0.00012668,2]
[421231683,1777279843086,-1335.28898699,0.00012668,2]
[421231684,1777279843097,-2682.75126377,0.00012668,2]
[421231685,1777279843127,-72545.09390467,0.00012668,2]
[421231686,1777279843183,-4587.0657763,0.00012668,2]
[421231687,1777279843237,-400.66706092,0.00012668,2]
[421231698,1777279846120,-98962.44496879,0.00012668,2]
[421231699,1777279846131,-3875.2381898,0.00012668,2]
[421231700,1777279846331,-6540.46837274,0.00012668,2]
[421231701,1777279846342,-17703.52406791,0.00012668,2]
[421231705,1777279855223,400.0,0.00025543,120]
[421231706,1777279917946,378.84284483,0.00025543,120]
[421231707,1777279918274,378.84284483,0.00025543,120]
[421231708,1777279918562,378.84284483,0.00025543,120]
[421231709,1777279918866,378.84284483,0.00025543,120]
[421231710,1777279919497,378.84284483,0.00025543,120]
[421231711,1777279919800,378.84284483,0.00025543,120]
[421231712,1777279920115,378.84284483,0.00025543,120]
[421231713,1777279920410,378.84284483,0.00025543,120]
[421231714,1777279920725,378.84284483,0.00025543,120]
[421231715,1777279921324,378.84284483,0.00025543,120]
[421231716,1777279921652,378.84284483,0.00025543,120]
[421231717,1777279921983,378.84284483,0.00025543,120]
[421231718,1777279922285,378.84284483,0.00025543,120]
[421231719,1777279922628,378.84284483,0.00025543,120]
[421231720,1777279922958,378.84284483,0.00025543,120]
[421231721,1777279923256,378.84284483,0.00025543,120]
[421231722,1777279923846,378.84284483,0.00025543,120]
[421231723,1777279927546,378.84284483,0.00025543,120]
[421231724,1777279927877,378.84284483,0.00025543,120]
[421231725,1777279928172,378.84284483,0.00025543,120]
[421231726,1777279928484,378.84284483,0.00025543,120]
[421231727,1777279928792,378.84284483,0.00025543,120]
[421231728,1777279929083,378.84284483,0.00025543,120]
[421231729,1777279929372,378.84284483,0.00025543,120]
[421231730,1777279929836,378.84284483,0.00025543,120]
[421231731,1777279930122,378.84284483,0.00025543,120]
[421231732,1777279930417,378.84284483,0.00025543,120]
[421231733,1777279930721,378.84284483,0.00025543,120]
[421231734,1777279931014,378.84284483,0.00025543,120]
[421231735,1777279952747,500.0,0.00025543,120]
[421231736,1777279978067,189.42142241,0.00025543,120]
[421231737,1777279982210,189.42142241,0.00025543,120]
[421231738,1777280009158,600.0,0.00025543,120]
[421231739,1777280070478,600.0,0.00025543,120]
[421231741,1777280187159,839.3,0.00024658,120]
[421231742,1777280230405,6024.0,0.00025536,120]
[421231743,1777280447394,5259.83646506,7.6e-05,2]
[421231744,1777280560817,-2894.42204509,7.524e-05,10]
[421231745,1777280781419,-150.0,7.562e-05,2]
[421231746,1777280781442,-4850.0,7.6e-05,2]
[421231747,1777280872155,-150.0,7.6e-05,2]
[421231748,1777280951223,-1200.0,7.524e-05,2]
[421231757,1777281032147,-186.77743006,7.524e-05,2]
[421231758,1777281032157,-222.36082246,7.6e-05,2]
[421231759,1777281032166,-150.0,8.581e-05,2]
[421231760,1777281032175,-177.0,0.00010581,2]
[421231762,1777281032185,-817.36,0.00011662,2]
[421231764,1777281032195,-300.0,0.00011798,2]
[421231767,1777281032204,-1200.0,0.00011798,2]
[421231769,1777281032213,-500.0,0.00011799,2]
[421231772,1777281032222,-365.26503132,0.00011799,2]
[421231775,1777281032231,-500.0,0.00011799,2]
[421231778,1777281032241,-384.31087045,0.00011799,2]
[421231781,1777281032251,-500.0,0.00011799,2]
[421231784,1777281032260,-500.0,0.00011799,2]
[421231786,1777281032270,-500.0,0.00011799,2]
[421231788,1777281032281,-500.0,0.00011799,2]
[421231790,1777281032290,-500.0,0.00011799,2]
[421231791,1777281032299,-500.0,0.00011799,2]
[421231793,1777281032308,-500.0,0.00011799,2]
[421231795,1777281032318,-220.88985437,0.000118,2]
[421231797,1777281032329,-1903.75761637,0.000118,2]
[421231850,1777281038363,-33288.52164934,0.000118,2]
[421231857,1777281040463,-6718.501097,0.000118,2]
[421231858,1777281040475,-623.8679506,0.000118,2]
[421231859,1777281040486,-1200.36558608,0.000118,2]
[421231860,1777281040517,-1197.10362736,0.000118,2]
[421231861,1777281040631,-65.84566602,0.000118,2]
[421231874,1777281043084,-1771.49898391,0.000118,2]
[421231875,1777281043095,-1040.29697163,0.000118,2]
[421231876,1777281043106,-7854.30538363,0.000118,2]
[421231877,1777281043117,-9742.05342553,0.000118,2]
[421231878,1777281043192,-400.0,0.000118,2]
[421231879,1777281043246,-10540.35432289,0.000118,2]
[421231891,1777281046355,-7841.31194213,0.000118,2]
[421231892,1777281046366,-6546.29956112,0.000118,2]
[421231893,1777281046409,-80431.56773177,0.000118,2]
[421231894,1777281145164,235.9,0.00025536,120]
[421231895,1777281171675,219.71006827,0.00025536,120]
[421231896,1777281171989,219.71006827,0.00025536,120]
[421231897,1777281425077,-698.827,0.00010685,2]
[421231898,1777281425121,-300.0,0.00010685,2]
[421231899,1777281425171,-3001.173,0.00010685,2]
[421231900,1777281425225,-173.76,0.00010793,2]
[421231901,1777281425245,-698.827,0.00011564,2]
[421231902,1777281425267,-150.0,0.00011623,2]
[421231903,1777281425288,-300.0,0.00011697,2]
[421231904,1777281425309,-292.0,0.00011698,2]
[421231905,1777281425329,-300.0,0.00011698,2]
[421231906,1777281425350,-177.413,0.00011698,2]
[421231907,1777281425445,-174.97,0.00011698,2]
[421231908,1777281572288,998.827,0.0001,5]
[421231944,1777282238659,-1.173,0.0001,5]
[421231945,1777282238669,-150.0,0.00010342,2]
[421231946,1777282238678,-559.062,0.00011368,2]
[421231947,1777282238688,-2249.46880738,0.00011473,2]
[421231957,1777282240713,-1917.85952668,0.00011473,2]
[421231959,1777282240771,-772.73702623,0.00011473,2]
[421231960,1777282240830,-1502.14568649,0.00011473,2]
[421231961,1777282240840,-300.0,0.00011498,2]
[421231963,1777282240850,-848.0,0.00011498,2]
[421231964,1777282240860,-1459.1073271,0.00011499,2]
[421231973,1777282245847,-603.52827843,0.00011499,2]
[421231974,1777282245905,-307.16731378,0.00011499,2]
[421231979,1777282246028,-3.0695769,0.00011499,2]
[421231984,1777282246561,-5909.9078761,0.00011499,2]
[421231985,1777282246618,-7544.1520055,0.00011499,2]
[421231986,1777282246627,-326.26416366,0.00011499,2]
[421231987,1777282246636,-500.0,0.00011499,2]
[421231988,1777282246645,-500.0,0.00011499,2]
[421231989,1777282246655,-414.28397504,0.00011499,2]
[421231990,1777282246664,-464.64541168,0.00011499,2]
[421231991,1777282246674,-255.68552192,0.00011499,2]
[421231992,1777282246683,-500.0,0.00011499,2]
[421231993,1777282246692,-500.0,0.00011499,2]
[421231994,1777282246701,-500.0,0.00011499,2]
[421231995,1777282246710,-500.0,0.00011499,2]
[421231996,1777282246719,-419.01760932,0.00011499,2]
[421231997,1777282246728,-500.0,0.00011499,2]
[421231998,1777282246738,-500.0,0.00011499,2]
[421231999,1777282246747,-500.0,0.00011499,2]
[421232000,1777282246756,-51412.5366873,0.000115,2]
[421232004,1777282251379,152.49540495,0.00025601,120]
[421232005,1777282281865,-500.0,0.00011499,2]
[421232006,1777282281896,-500.0,0.00011499,2]
[421232007,1777282281949,-294.4299235,0.00011499,2]
[421232008,1777282371427,152.49540494,0.00025601,120]
[421232009,1777282398843,164.14360871,0.00025601,120]
[421232080,1777283438763,-391.2211165,0.00010986,2]
[421232081,1777283438774,-455.9452987,0.00010986,2]
[421232082,1777283438785,-150.0,0.00011032,2]
[421232083,1777283438795,-151.5,0.00011099,2]
[421232084,1777283438806,-483.2,0.00011172,2]
[421232085,1777283438816,-5797.98994212,0.000112,2]
[421232087,1777283438826,-3503.52827843,0.00011299,2]
[421232088,1777283438836,-270.87048635,0.00011299,2]
[421232089,1777283439264,-500.0,0.00011299,2]
[421232090,1777283439292,-500.0,0.00011299,2]
[421232091,1777283439304,-500.0,0.00011299,2]
[421232092,1777283439314,-500.0,0.00011299,2]
[421232093,1777283439323,-500.0,0.00011299,2]
[421232094,1777283439334,-243.31232652,0.00011299,2]
[421232095,1777283439343,-500.0,0.00011299,2]
[421232096,1777283439353,-500.0,0.00011299,2]
[421232097,1777283439362,-500.0,0.00011299,2]
[421232098,1777283439372,-500.0,0.00011299,2]
[421232099,1777283439381,-313.51592305,0.00011299,2]
[421232100,1777283439391,-500.0,0.00011299,2]
[421232101,1777283439401,-500.0,0.00011299,2]
[421232102,1777283439410,-500.0,0.00011299,2]
[421232103,1777283439420,-500.0,0.00011299,2]
[421232104,1777283439430,-500.0,0.00011299,2]
[421232105,1777283439440,-651.16744532,0.00011299,2]
[421232106,1777283439450,-500.0,0.00011299,2]
[421232107,1777283439459,-500.0,0.00011299,2]
[421232108,1777283439468,-500.0,0.00011299,2]
[421232109,1777283439477,-271.53483471,0.00011299,2]
[421232110,1777283439487,-500.0,0.00011299,2]
[421232111,1777283439497,-500.0,0.00011299,2]
[421232112,1777283439507,-500.0,0.00011299,2]
[421232113,1777283439517,-500.0,0.00011299,2]
[421232114,1777283439526,-500.0,0.00011299,2]
[421232115,1777283439535,-500.0,0.00011299,2]
[421232116,1777283439545,-500.0,0.00011299,2]
[421232117,1777283439554,-500.0,0.00011299,2]
[421232118,1777283439563,-500.0,0.00011299,2]
[421232119,1777283439573,-427.98453112,0.00011299,2]
[421232120,1777283439582,-500.0,0.00011299,2]
[421232121,1777283439593,-500.0,0.00011299,2]
[421232122,1777283439602,-500.0,0.00011299,2]
[421232123,1777283439612,-491.99828123,0.00011299,2]
[421232124,1777283439622,-500.0,0.00011299,2]
[421232125,1777283439633,-500.0,0.00011299,2]
[421232126,1777283439642,-500.0,0.00011299,2]
[421232127,1777283439652,-500.0,0.00011299,2]
[421232128,1777283439661,-443.81351237,0.00011299,2]
[421232129,1777283439671,-1712250.84253774,0.000113,2]
[421232139,1777283441025,-1000.0,0.000113,2]
[421232148,1777283446623,-52868.49594534,0.000113,2]
[421232149,1777283446676,-2399.16763074,0.000113,2]
[421232164,1777283804799,10000.000001,0.0002559,120]
[421232166,1777284050927,-5170.30401251,7.6e-05,2]
[421232167,1777284272732,-1136.96753794,7.524e-05,2]
[421232168,1777284272756,-3863.03246206,7.6e-05,2]
[421232169,1777284370034,2000.0,0.0002559,120]
[421232170,1777284381608,527.02,0.0002559,120]
[421232171,1777284381722,-150.0,7.6e-05,2]
[421233782,1777284632580,-399.86526697,7.3e-05,2]
[421233784,1777284632636,-547.00878526,7.3e-05,2]
[421233785,1777284632645,-300.0,7.374e-05,2]
[421233786,1777284632656,-300.0,7.374e-05,2]
[421233787,1777284632665,-1200.0,7.374e-05,2]
[421233788,1777284632674,-300.0,7.374e-05,2]
[421233789,1777284632683,-5000.0,7.375e-05,2]
[421233790,1777284632692,-524.0,7.375e-05,2]
[421233792,1777284632702,-247.67,7.4e-05,2]
[421233793,1777284632711,-2550.94714126,7.449e-05,2]
[421233794,1777284632721,-67.47433229,7.6e-05,2]
[421233795,1777284632730,-576.29200314,8.111e-05,2]
[421233876,1777284643656,-388.63570822,8.03e-05,2]
[421234192,1777284646934,-9.44632583,8.03e-05,2]
[421234194,1777284646943,-150.0,8.071e-05,2]
[421234196,1777284646953,-29.70799686,8.111e-05,2]
[421234198,1777284646962,-420.0,8.111e-05,2]
[421234201,1777284646972,-194.0,8.923e-05,2]
[421234202,1777284646981,-255.19250133,0.0001,2]
[421237201,1777285832698,-5000.0,8.18e-05,2]
[421237202,1777285832708,-523.60051223,8.263e-05,2]
[421237203,1777285832718,-5000.0,8.346e-05,2]
[421237204,1777285832727,-463.0,8.429e-05,2]
[421237206,1777285832737,-150.0,8.644e-05,2]
[421237208,1777285832747,-325.5033173,9.328e-05,2]
[421237210,1777285832756,-166.7445514,9.345e-05,2]
[421237212,1777285832766,-250.0,9.415e-05,5]
[421237214,1777285832775,-216.5866056,9.5e-05,2]
[421237215,1777285832784,-63.17486454,0.0001,2]
[421237217,1777285832793,-500.0,0.0001,2]
[421237218,1777285832803,-15404.395583,0.00010097,2]
[421237219,1777285832812,-300.0,0.00010097,2]
[421237220,1777285832821,-300.0,0.00010097,2]
[421237222,1777285832831,-300.0,0.00010097,2]
[421237224,1777285832840,-300.0,0.00010097,2]
[421237225,1777285832849,-300.0,0.00010097,2]
[421237227,1777285832858,-300.0,0.00010097,2]
[421237229,1777285832868,-300.0,0.00010097,2]
[421237231,1777285832878,-300.0,0.00010097,2]
[421237233,1777285832887,-300.0,0.00010097,2]
[421237235,1777285832896,-300.0,0.00010097,2]
[421237237,1777285832906,-300.0,0.00010097,2]
[421237238,1777285832915,-300.0,0.00010097,2]
[421237239,1777285832924,-300.0,0.00010097,2]
[421237240,1777285832935,-300.0,0.00010097,2]
[421237241,1777285832945,-300.0,0.00010097,2]
[421237242,1777285832954,-396.043,0.00010097,2]
[421237243,1777285832963,-325.4780488,0.0001015,2]
[421237244,1777285832972,-151.0,0.00010157,2]
[421237245,1777285832982,-151.0,0.00010157,2]
[421237246,1777285832992,-455.8385479,0.00010167,2]
[421237247,1777285833002,-290.17310788,0.00010589,2]
[421237248,1777285833012,-590.88372749,0.00010589,2]
[421237249,1777285833021,-500.0,0.00010589,2]
[421237250,1777285833031,-500.0,0.00010589,2]
[421237251,1777285833040,-500.0,0.00010589,2]
[421237252,1777285833049,-500.0,0.00010589,2]
[421237253,1777285833059,-500.0,0.00010589,2]
[421237254,1777285833068,-500.0,0.00010589,2]
[421237255,1777285833078,-500.0,0.00010589,2]
[421237256,1777285833087,-500.0,0.00010589,2]
[421237257,1777285833096,-161.73453719,0.00010589,2]
[421237258,1777285833105,-500.0,0.00010589,2]
[421237259,1777285833114,-500.0,0.00010589,2]
[421237260,1777285833124,-500.0,0.00010589,2]
[421237261,1777285833133,-500.0,0.00010589,2]
[421237262,1777285833142,-635.68604867,0.00010589,2]
[421237263,1777285833151,-500.0,0.00010589,2]
[421237264,1777285833161,-20312.68868586,0.0001059,2]
[421237265,1777285833173,-964.89145865,0.0001059,2]
[421237266,1777285833184,-5791.1911899,0.0001059,2]
[421237288,1777285838935,-26998.4984452,0.0001059,2]
[421237289,1777285839104,-77734.3958705,0.0001059,2]
[421237321,1777285847074,-3030.80257404,0.00010484,2]
[421237322,1777285847083,-29762.81275798,0.0001059,2]
[421237323,1777285847298,-1699.29526093,0.0001059,2]
[421237324,1777285847309,-7841.31194213,0.0001059,2]
[421237356,1777285848317,-48579.87956451,0.0001059,2]
[421237357,1777285848329,-478.55877297,0.0001059,2]
[421237412,1777285881063,-152.0,0.00010586,7]
[421237413,1777285881096,-152.0,0.00010586,7]
[421237414,1777285881126,-152.0,0.00010586,7]
[421237415,1777285881158,-152.0,0.00010586,7]
[421237416,1777285881187,-300.0,0.00010589,2]
[421237417,1777285881211,-152.0,0.00010589,2]
[421237418,1777285881223,-152.0,0.00010589,2]
[421237419,1777285881235,-152.0,0.00010589,2]
[421237420,1777285881251,-44.0,0.00010589,2]
[421237421,1777285881261,-108.0,0.00010589,2]
[421237422,1777285881273,-300.0,0.00010589,2]
[421237423,1777285881285,-92.0,0.00010589,2]
[421237424,1777285881294,-386.4299235,0.00010589,2]
[421237600,1777285990011,500.0,0.00025596,120]
[421239112,1777286862882,5000.0,0.00025595,120]
[421239272,1777286951918,348.93382,0.00025595,120]
[421239456,1777287038235,-2294.4299235,9.97e-05,10]
[421239457,1777287038244,-150.0,0.00010122,2]
[421239458,1777287038254,-300.0,0.00010582,2]
[421239459,1777287038264,-1200.0,0.00010582,2]
[421239460,1777287038274,-150.6421436,0.00010583,2]
[421239461,1777287038284,-12639.954514,0.00010583,2]
[421239462,1777287038294,-300.0,0.00010801,2]
[421239463,1777287038304,-300.0,0.00010801,2]
[421239464,1777287038313,-300.0,0.00010801,2]
[421239465,1777287038323,-300.0,0.00010801,2]